[Event "Early-Titled-Tuesday-Blitz-August-29-2023"]
[Site "Chess.com"]
[Date "2023.08.29"]
[Round "7"]
[White "FREDERICKtheMATE"]
[Black "albi1999"]
[Result "1-0"]
[WhiteElo "2493"]
[BlackElo "2664"]
[TimeControl "180+1"]
[EndTime "9:15:36 PDT"]
[Termination "FREDERICKtheMATE won by resignation"]

1. Nf3 {[%clk 0:03:00.9]} 1... Nf6 {[%clk 0:02:58.6]} 2. g3 {[%clk 0:03:01.8]}
2... g6 {[%clk 0:02:56.3]} 3. b3 {[%clk 0:03:02.4]} 3... Bg7 {[%clk 0:02:55.2]}
4. Bb2 {[%clk 0:03:03]} 4... d5 {[%clk 0:02:55.5]} 5. Bg2 {[%clk 0:03:03.4]}
5... O-O {[%clk 0:02:55.4]} 6. O-O {[%clk 0:03:04]} 6... c5 {[%clk 0:02:52.9]}
7. e3 {[%clk 0:03:04.3]} 7... Nc6 {[%clk 0:02:52.6]} 8. Qe2 {[%clk 0:03:03.9]}
8... Qc7 {[%clk 0:02:51.9]} 9. c4 {[%clk 0:03:03.7]} 9... dxc4 {[%clk
0:02:39.1]} 10. bxc4 {[%clk 0:03:03.2]} 10... Rd8 {[%clk 0:02:37.1]} 11. d4
{[%clk 0:02:57.1]} 11... cxd4 {[%clk 0:02:35.5]} 12. exd4 {[%clk 0:02:58]} 12...
Ne8 {[%clk 0:02:29.6]} 13. Rd1 {[%clk 0:02:54.7]} 13... Nd6 {[%clk 0:02:19.7]}
14. Na3 {[%clk 0:02:54.4]} 14... Qa5 {[%clk 0:02:15.4]} 15. Nb5 {[%clk
0:02:49.9]} 15... Nxb5 {[%clk 0:02:07.3]} 16. cxb5 {[%clk 0:02:50.8]} 16... Nb4
{[%clk 0:02:06.4]} 17. a4 {[%clk 0:02:49.3]} 17... Nd5 {[%clk 0:02:03]} 18. Ne5
{[%clk 0:02:44.2]} 18... Be6 {[%clk 0:02:02.6]} 19. Rdc1 {[%clk 0:02:41.2]}
19... Rac8 {[%clk 0:01:59.3]} 20. Rc5 {[%clk 0:02:40.5]} 20... Qb4 {[%clk
0:01:46.2]} 21. Nd3 {[%clk 0:02:32.2]} 21... Qa5 {[%clk 0:01:07.1]} 22. Rxc8
{[%clk 0:02:32.1]} 22... Rxc8 {[%clk 0:01:04.9]} 23. Nc5 {[%clk 0:02:32.6]}
23... Nc3 {[%clk 0:00:53]} 24. Qd2 {[%clk 0:02:18.3]} 24... Bxd4 {[%clk
0:00:43.8]} 25. Nxe6 {[%clk 0:02:10.4]} 25... fxe6 {[%clk 0:00:44.7]} 26. Bxb7
{[%clk 0:02:04.1]} 26... Rf8 {[%clk 0:00:40.5]} 27. Rf1 {[%clk 0:01:58.2]} 27...
e5 {[%clk 0:00:33]} 28. Kg2 {[%clk 0:01:55.4]} 28... Qc7 {[%clk 0:00:29.9]} 29.
Bc6 {[%clk 0:01:47.5]} 29... Qa5 {[%clk 0:00:07.2]} 30. f4 {[%clk 0:01:43.2]}
30... Qb4 {[%clk 0:00:03.2]} 31. Rc1 {[%clk 0:01:23.9]} 31... exf4 {[%clk
0:00:01.1]} 32. Bxc3 {[%clk 0:01:22.8]} 32... Bxc3 {[%clk 0:00:01.6]} 33. Qxc3
{[%clk 0:01:23.1]} 33... f3+ {[%clk 0:00:01.9]} 34. Bxf3 {[%clk 0:01:20.6]} 1-0

[Event "Early-Titled-Tuesday-Blitz-August-29-2023"]
[Site "Chess.com"]
[Date "2023.08.29"]
[Round "7"]
[White "only_strong_moves"]
[Black "CalinGheorghiu"]
[Result "1-0"]
[WhiteElo "2528"]
[BlackElo "2354"]
[TimeControl "180+1"]
[EndTime "9:15:40 PDT"]
[Termination "only_strong_moves won by checkmate"]

1. d4 {[%clk 0:03:00.9]} 1... Nf6 {[%clk 0:02:59.5]} 2. Nc3 {[%clk 0:03:01.4]}
2... d5 {[%clk 0:02:58.7]} 3. Bf4 {[%clk 0:03:02.1]} 3... e6 {[%clk 0:02:56.4]}
4. Nb5 {[%clk 0:03:01.4]} 4... Na6 {[%clk 0:02:56]} 5. e3 {[%clk 0:03:01]} 5...
Be7 {[%clk 0:02:54.1]} 6. Nf3 {[%clk 0:03:00.7]} 6... O-O {[%clk 0:02:54.7]} 7.
Be2 {[%clk 0:02:59.2]} 7... Bd7 {[%clk 0:02:50]} 8. a4 {[%clk 0:02:58.2]} 8...
c5 {[%clk 0:02:48.5]} 9. O-O {[%clk 0:02:57.3]} 9... Nh5 {[%clk 0:02:41.7]} 10.
Be5 {[%clk 0:02:55.6]} 10... f6 {[%clk 0:02:41.8]} 11. Bd6 {[%clk 0:02:50.6]}
11... Bxb5 {[%clk 0:02:21.1]} 12. Bxe7 {[%clk 0:02:49.1]} 12... Bxe2 {[%clk
0:02:20.9]} 13. Qxe2 {[%clk 0:02:33.7]} 13... Qxe7 {[%clk 0:02:20.8]} 14. g4
{[%clk 0:02:34.3]} 14... Qf7 {[%clk 0:02:07.4]} 15. Ne1 {[%clk 0:02:24.7]} 15...
Qg6 {[%clk 0:01:50.6]} 16. Kh1 {[%clk 0:02:24.3]} 16... Qe4+ {[%clk 0:01:50.2]}
17. f3 {[%clk 0:02:22.8]} 17... Nf4 {[%clk 0:01:49.6]} 18. Qd2 {[%clk
0:02:16.9]} 18... Qg6 {[%clk 0:01:32.2]} 19. exf4 {[%clk 0:02:17.3]} 19... cxd4
{[%clk 0:01:20.8]} 20. Qxd4 {[%clk 0:02:18.2]} 20... Rac8 {[%clk 0:01:20.5]} 21.
f5 {[%clk 0:02:12.5]} 21... Qf7 {[%clk 0:01:04.6]} 22. fxe6 {[%clk 0:02:12.5]}
22... Qxe6 {[%clk 0:01:04.7]} 23. Rd1 {[%clk 0:01:52.7]} 23... Rfd8 {[%clk
0:00:44.4]} 24. c3 {[%clk 0:01:52.7]} 24... Rc4 {[%clk 0:00:39.4]} 25. Qd2
{[%clk 0:01:46.6]} 25... Nc5 {[%clk 0:00:37.7]} 26. Ng2 {[%clk 0:01:27.6]} 26...
Rxa4 {[%clk 0:00:34.4]} 27. Nf4 {[%clk 0:01:27]} 27... Qd6 {[%clk 0:00:19.7]}
28. Nxd5 {[%clk 0:01:25.1]} 28... Kh8 {[%clk 0:00:18.6]} 29. b4 {[%clk
0:01:14.3]} 29... Ne6 {[%clk 0:00:16.8]} 30. Qc2 {[%clk 0:01:10.7]} 30... Ra3
{[%clk 0:00:13.6]} 31. Nxf6 {[%clk 0:01:05.6]} 31... Qb6 {[%clk 0:00:05.9]} 32.
Qxh7# {[%clk 0:01:04.7]} 1-0

[Event "Early-Titled-Tuesday-Blitz-August-29-2023"]
[Site "Chess.com"]
[Date "2023.08.29"]
[Round "7"]
[White "Aleksandar-Topalov"]
[Black "Djager97"]
[Result "1-0"]
[WhiteElo "2372"]
[BlackElo "2594"]
[TimeControl "180+1"]
[EndTime "9:15:43 PDT"]
[Termination "Aleksandar-Topalov won on time"]

1. b3 {[%clk 0:02:59.4]} 1... d5 {[%clk 0:02:59.2]} 2. Bb2 {[%clk 0:02:58.9]}
2... Nf6 {[%clk 0:02:59.8]} 3. Nf3 {[%clk 0:02:57.4]} 3... Bf5 {[%clk
0:02:59.1]} 4. g3 {[%clk 0:02:56.7]} 4... e6 {[%clk 0:02:58.6]} 5. d3 {[%clk
0:02:56.5]} 5... h6 {[%clk 0:02:57.8]} 6. Bg2 {[%clk 0:02:56.2]} 6... c5 {[%clk
0:02:58.1]} 7. Ne5 {[%clk 0:02:55]} 7... Nbd7 {[%clk 0:02:56.4]} 8. Nxd7 {[%clk
0:02:54]} 8... Qxd7 {[%clk 0:02:57.3]} 9. O-O {[%clk 0:02:53.2]} 9... Be7 {[%clk
0:02:44.9]} 10. Nd2 {[%clk 0:02:53.1]} 10... Rd8 {[%clk 0:02:37.9]} 11. e4
{[%clk 0:02:48.2]} 11... dxe4 {[%clk 0:02:34.5]} 12. Nxe4 {[%clk 0:02:47.2]}
12... Bxe4 {[%clk 0:01:32.1]} 13. dxe4 {[%clk 0:02:44.9]} 13... Qc7 {[%clk
0:01:31.9]} 14. Qe2 {[%clk 0:02:41.9]} 14... O-O {[%clk 0:01:31.7]} 15. Rfd1
{[%clk 0:02:36]} 15... b6 {[%clk 0:01:20.7]} 16. c4 {[%clk 0:02:14.2]} 16... e5
{[%clk 0:01:03.1]} 17. Bh3 {[%clk 0:02:08]} 17... g6 {[%clk 0:00:36]} 18. f3
{[%clk 0:02:07.4]} 18... Kg7 {[%clk 0:00:34.4]} 19. Rxd8 {[%clk 0:02:06.3]}
19... Rxd8 {[%clk 0:00:34.1]} 20. Rd1 {[%clk 0:02:06.2]} 20... Bd6 {[%clk
0:00:12.4]} 21. Rd3 {[%clk 0:02:04]} 21... Qe7 {[%clk 0:00:12.3]} 22. Qd2 {[%clk
0:01:59.2]} 22... h5 {[%clk 0:00:12.3]} 23. Kg2 {[%clk 0:01:57.8]} 23... h4
{[%clk 0:00:11]} 24. Qg5 {[%clk 0:01:46.5]} 24... hxg3 {[%clk 0:00:06.3]} 25.
hxg3 {[%clk 0:01:45.8]} 25... Bc7 {[%clk 0:00:04.1]} 26. Rxd8 {[%clk 0:01:37.2]}
26... Qxd8 {[%clk 0:00:05]} 27. Bxe5 {[%clk 0:01:27.1]} 27... Bxe5 {[%clk
0:00:04.6]} 28. Qxe5 {[%clk 0:01:26.6]} 28... Qd2+ {[%clk 0:00:05.2]} 29. Kh1
{[%clk 0:01:25.5]} 29... Qe1+ {[%clk 0:00:04.2]} 30. Kh2 {[%clk 0:01:24.5]}
30... Qf2+ {[%clk 0:00:04.5]} 31. Bg2 {[%clk 0:01:24.8]} 31... Qxa2 {[%clk
0:00:04.4]} 32. g4 {[%clk 0:01:25.2]} 32... Qf2 {[%clk 0:00:01]} 33. g5 {[%clk
0:01:21.7]} 33... Qh4+ {[%clk 0:00:01.1]} 34. Kg1 {[%clk 0:01:19.4]} 34... Qe1+
{[%clk 0:00:01.6]} 35. Bf1 {[%clk 0:01:19.7]} 35... Qg3+ {[%clk 0:00:01.9]} 36.
Qxg3 {[%clk 0:01:18.9]} 1-0

[Event "Early-Titled-Tuesday-Blitz-August-29-2023"]
[Site "Chess.com"]
[Date "2023.08.29"]
[Round "7"]
[White "Dmitry_Konenkin"]
[Black "Chessbard1972"]
[Result "0-1"]
[WhiteElo "2397"]
[BlackElo "2551"]
[TimeControl "180+1"]
[EndTime "9:15:43 PDT"]
[Termination "Chessbard1972 won by resignation"]

1. d4 {[%clk 0:02:59.7]} 1... Nf6 {[%clk 0:02:59.3]} 2. Bg5 {[%clk 0:02:59.6]}
2... Ne4 {[%clk 0:02:59.2]} 3. Bh4 {[%clk 0:02:59.6]} 3... d5 {[%clk 0:02:56.5]}
4. f3 {[%clk 0:03:00]} 4... Nd6 {[%clk 0:02:56.2]} 5. Nc3 {[%clk 0:03:00.1]}
5... Nf5 {[%clk 0:02:55.8]} 6. Bf2 {[%clk 0:02:59.1]} 6... c5 {[%clk 0:02:54.1]}
7. e3 {[%clk 0:02:41.5]} 7... cxd4 {[%clk 0:02:52.1]} 8. exd4 {[%clk 0:02:42.4]}
8... Nc6 {[%clk 0:02:51.2]} 9. g4 {[%clk 0:02:14.6]} 9... Nh6 {[%clk 0:02:49.4]}
10. Bd3 {[%clk 0:02:10.8]} 10... g6 {[%clk 0:02:48.3]} 11. Nge2 {[%clk
0:02:09.1]} 11... Bg7 {[%clk 0:02:46.7]} 12. Qd2 {[%clk 0:02:08.3]} 12... f5
{[%clk 0:02:43.4]} 13. Be3 {[%clk 0:01:52.3]} 13... Nf7 {[%clk 0:02:32.7]} 14.
gxf5 {[%clk 0:01:52.5]} 14... Bxf5 {[%clk 0:02:26.7]} 15. Bxf5 {[%clk
0:01:51.8]} 15... gxf5 {[%clk 0:02:26.8]} 16. O-O-O {[%clk 0:01:51.2]} 16... Qd7
{[%clk 0:02:21.6]} 17. Rhg1 {[%clk 0:01:45.2]} 17... Bf6 {[%clk 0:02:21.4]} 18.
Nf4 {[%clk 0:01:42.2]} 18... e6 {[%clk 0:02:20]} 19. Nh5 {[%clk 0:01:40.7]}
19... Qe7 {[%clk 0:02:15.4]} 20. Nb5 {[%clk 0:00:51.7]} 20... O-O-O {[%clk
0:02:10.3]} 21. Qc3 {[%clk 0:00:41.9]} 21... Bg5 {[%clk 0:01:23.2]} 22. Nxa7+
{[%clk 0:00:34.7]} 22... Kc7 {[%clk 0:01:23.3]} 23. Nxc6 {[%clk 0:00:33.4]}
23... bxc6 {[%clk 0:01:22.1]} 24. Rxg5 {[%clk 0:00:21.4]} 24... Nxg5 {[%clk
0:01:18.7]} 25. Bf4+ {[%clk 0:00:21.9]} 25... Kd7 {[%clk 0:01:17]} 26. Rg1
{[%clk 0:00:18.1]} 26... h6 {[%clk 0:01:14.4]} 27. h4 {[%clk 0:00:17.7]} 27...
Rdg8 {[%clk 0:01:10.2]} 28. hxg5 {[%clk 0:00:17.7]} 28... hxg5 {[%clk
0:01:10.1]} 29. Qa5 {[%clk 0:00:07]} 29... gxf4 {[%clk 0:01:01.9]} 30. Qc7+
{[%clk 0:00:06.9]} 30... Kxc7 {[%clk 0:01:01.8]} 0-1

[Event "Early-Titled-Tuesday-Blitz-August-29-2023"]
[Site "Chess.com"]
[Date "2023.08.29"]
[Round "7"]
[White "xamax2000"]
[Black "OparinGrigoriy"]
[Result "0-1"]
[WhiteElo "2850"]
[BlackElo "2983"]
[TimeControl "180+1"]
[EndTime "9:15:45 PDT"]
[Termination "OparinGrigoriy won by resignation"]

1. d4 {[%clk 0:03:00.9]} 1... Nf6 {[%clk 0:02:59.6]} 2. c4 {[%clk 0:03:01.4]}
2... e6 {[%clk 0:03:00.3]} 3. Nf3 {[%clk 0:03:00.9]} 3... b6 {[%clk 0:03:00.9]}
4. a3 {[%clk 0:02:58.1]} 4... Bb7 {[%clk 0:03:00.8]} 5. Nc3 {[%clk 0:02:57.4]}
5... Ne4 {[%clk 0:03:00.9]} 6. Nxe4 {[%clk 0:02:54]} 6... Bxe4 {[%clk
0:03:01.8]} 7. Bf4 {[%clk 0:02:51.9]} 7... Be7 {[%clk 0:02:54.3]} 8. e3 {[%clk
0:02:52.2]} 8... O-O {[%clk 0:02:53.2]} 9. Bd3 {[%clk 0:02:52.2]} 9... Bxd3
{[%clk 0:02:53]} 10. Qxd3 {[%clk 0:02:53.1]} 10... d6 {[%clk 0:02:53.1]} 11. O-O
{[%clk 0:02:52.6]} 11... a5 {[%clk 0:02:51.9]} 12. b4 {[%clk 0:02:49.6]} 12...
Nd7 {[%clk 0:02:45.1]} 13. e4 {[%clk 0:02:39.7]} 13... Re8 {[%clk 0:02:43.5]}
14. Be3 {[%clk 0:02:34]} 14... h6 {[%clk 0:02:40.7]} 15. h3 {[%clk 0:02:33.7]}
15... Qc8 {[%clk 0:02:39.3]} 16. b5 {[%clk 0:02:10.2]} 16... a4 {[%clk
0:02:39.2]} 17. Bd2 {[%clk 0:01:59]} 17... e5 {[%clk 0:02:31.1]} 18. Bc3 {[%clk
0:01:52]} 18... exd4 {[%clk 0:02:28.9]} 19. Nxd4 {[%clk 0:01:52]} 19... Nc5
{[%clk 0:02:27]} 20. Qc2 {[%clk 0:01:51.9]} 20... Bf6 {[%clk 0:02:23.6]} 21.
Rae1 {[%clk 0:01:52.3]} 21... Bxd4 {[%clk 0:02:19.9]} 22. Bxd4 {[%clk
0:01:52.4]} 22... Nb3 {[%clk 0:02:20.5]} 23. Bb2 {[%clk 0:01:51.8]} 23... f6
{[%clk 0:02:21.1]} 24. Re3 {[%clk 0:01:51.1]} 24... Qd7 {[%clk 0:02:20.1]} 25.
f4 {[%clk 0:01:47.7]} 25... Re6 {[%clk 0:02:17.1]} 26. Rfe1 {[%clk 0:01:43.1]}
26... Rae8 {[%clk 0:02:16.8]} 27. Kh1 {[%clk 0:01:41.5]} 27... Qf7 {[%clk
0:02:15.6]} 28. R1e2 {[%clk 0:01:21.6]} 28... R6e7 {[%clk 0:02:13.4]} 29. Rf2
{[%clk 0:01:15.3]} 29... Qh5 {[%clk 0:02:10.5]} 30. e5 {[%clk 0:01:01.7]} 30...
dxe5 {[%clk 0:01:56.7]} 31. fxe5 {[%clk 0:01:02.6]} 31... fxe5 {[%clk
0:01:56.6]} 32. Rf5 {[%clk 0:01:02.8]} 32... Qg6 {[%clk 0:01:56.8]} 33. Rexe5
{[%clk 0:00:32.4]} 33... Rxe5 {[%clk 0:01:53.2]} 34. Bxe5 {[%clk 0:00:32.9]}
34... Kh7 {[%clk 0:01:41.5]} 35. Qf2 {[%clk 0:00:21.5]} 35... Nc5 {[%clk
0:01:41.8]} 36. Qf3 {[%clk 0:00:20.5]} 36... Re7 {[%clk 0:01:33.8]} 37. h4
{[%clk 0:00:13.1]} 37... Qe8 {[%clk 0:01:26.5]} 38. Bd4 {[%clk 0:00:10.9]} 38...
Ne4 {[%clk 0:01:22.9]} 39. Kh2 {[%clk 0:00:10.4]} 39... Qd7 {[%clk 0:01:14.9]}
40. Rf4 {[%clk 0:00:10.5]} 40... Qxd4 {[%clk 0:01:13.9]} 0-1

[Event "Early-Titled-Tuesday-Blitz-August-29-2023"]
[Site "Chess.com"]
[Date "2023.08.29"]
[Round "7"]
[White "vishwa_vijeta"]
[Black "NovikovaGalina"]
[Result "0-1"]
[WhiteElo "2517"]
[BlackElo "2415"]
[TimeControl "180+1"]
[EndTime "9:15:46 PDT"]
[Termination "NovikovaGalina won by resignation"]

1. e4 {[%clk 0:03:00.9]} 1... e5 {[%clk 0:02:59.7]} 2. Nf3 {[%clk 0:03:00.9]}
2... Nc6 {[%clk 0:03:00.3]} 3. d4 {[%clk 0:03:01.3]} 3... exd4 {[%clk
0:02:58.6]} 4. Bc4 {[%clk 0:03:01.5]} 4... Bc5 {[%clk 0:02:50.5]} 5. c3 {[%clk
0:02:55.4]} 5... d3 {[%clk 0:02:48.6]} 6. Qxd3 {[%clk 0:02:54.9]} 6... d6 {[%clk
0:02:42]} 7. O-O {[%clk 0:02:46.6]} 7... Nf6 {[%clk 0:02:33.9]} 8. b4 {[%clk
0:02:42.7]} 8... Bb6 {[%clk 0:02:31.7]} 9. a4 {[%clk 0:02:40.8]} 9... a6 {[%clk
0:02:30.7]} 10. Bf4 {[%clk 0:02:16.6]} 10... O-O {[%clk 0:02:25.6]} 11. Nbd2
{[%clk 0:02:15.3]} 11... h6 {[%clk 0:02:22.6]} 12. h3 {[%clk 0:02:14.2]} 12...
Qe7 {[%clk 0:02:17.4]} 13. Rfe1 {[%clk 0:02:13.8]} 13... Ne5 {[%clk 0:02:16.8]}
14. Nxe5 {[%clk 0:02:11]} 14... dxe5 {[%clk 0:02:17.7]} 15. Bh2 {[%clk
0:02:09.9]} 15... Be6 {[%clk 0:02:10.5]} 16. Bxe5 {[%clk 0:02:05.1]} 16... Rad8
{[%clk 0:02:09.8]} 17. Bxf6 {[%clk 0:01:58.1]} 17... Qxf6 {[%clk 0:02:08.7]} 18.
Bd5 {[%clk 0:01:22.2]} 18... Bxf2+ {[%clk 0:02:02.7]} 19. Kh1 {[%clk 0:01:17.1]}
19... Bxe1 {[%clk 0:02:03.6]} 20. Rxe1 {[%clk 0:01:17]} 20... c6 {[%clk
0:02:04.2]} 21. c4 {[%clk 0:01:12.8]} 21... cxd5 {[%clk 0:02:01.8]} 22. cxd5
{[%clk 0:01:13.7]} 22... Bd7 {[%clk 0:01:59.8]} 23. Rf1 {[%clk 0:00:55.2]} 23...
Qb2 {[%clk 0:01:55.7]} 24. e5 {[%clk 0:00:51.9]} 24... Bxa4 {[%clk 0:01:53.2]}
25. Qe3 {[%clk 0:00:36.5]} 25... Rxd5 {[%clk 0:01:44.7]} 26. Nc4 {[%clk
0:00:35.1]} 26... Qd4 {[%clk 0:01:41.7]} 27. Qe2 {[%clk 0:00:22.8]} 27... Bb5
{[%clk 0:01:39.6]} 28. e6 {[%clk 0:00:23.1]} 28... Qxc4 {[%clk 0:01:02.5]} 29.
exf7+ {[%clk 0:00:15.2]} 29... Kh8 {[%clk 0:01:02.7]} 0-1

[Event "Early-Titled-Tuesday-Blitz-August-29-2023"]
[Site "Chess.com"]
[Date "2023.08.29"]
[Round "7"]
[White "Mikhail_Golubev"]
[Black "BashirliSaadat"]
[Result "0-1"]
[WhiteElo "2555"]
[BlackElo "2395"]
[TimeControl "180+1"]
[EndTime "9:15:46 PDT"]
[Termination "BashirliSaadat won on time"]

1. e4 {[%clk 0:03:00.9]} 1... c6 {[%clk 0:02:59.2]} 2. d4 {[%clk 0:02:56.3]}
2... d5 {[%clk 0:02:59.1]} 3. Nc3 {[%clk 0:02:57]} 3... dxe4 {[%clk 0:02:58.8]}
4. Nxe4 {[%clk 0:02:57.9]} 4... Nf6 {[%clk 0:02:59.1]} 5. Nxf6+ {[%clk
0:02:57.9]} 5... exf6 {[%clk 0:02:59.8]} 6. c3 {[%clk 0:02:57.9]} 6... Bd6
{[%clk 0:02:59.8]} 7. Bd3 {[%clk 0:02:58.3]} 7... O-O {[%clk 0:02:58.3]} 8. Ne2
{[%clk 0:02:58.1]} 8... Re8 {[%clk 0:02:58]} 9. O-O {[%clk 0:02:52.1]} 9... Bg4
{[%clk 0:02:56.7]} 10. f3 {[%clk 0:02:44.9]} 10... Bh5 {[%clk 0:02:55.7]} 11.
Nf4 {[%clk 0:02:37.5]} 11... Bg6 {[%clk 0:02:52.2]} 12. Nxg6 {[%clk 0:02:36.6]}
12... hxg6 {[%clk 0:02:50.4]} 13. Qb3 {[%clk 0:02:20.1]} 13... Qc7 {[%clk
0:02:42.5]} 14. Bxg6 {[%clk 0:02:12]} 14... Bxh2+ {[%clk 0:02:41.6]} 15. Kh1
{[%clk 0:02:11.3]} 15... Bd6 {[%clk 0:02:40.1]} 16. Bd2 {[%clk 0:01:55.4]} 16...
Kf8 {[%clk 0:02:33.3]} 17. Bd3 {[%clk 0:01:49.4]} 17... Nd7 {[%clk 0:02:32.9]}
18. f4 {[%clk 0:01:44.2]} 18... g6 {[%clk 0:02:24.5]} 19. Qd1 {[%clk 0:01:39]}
19... Kg7 {[%clk 0:02:22.1]} 20. Qg4 {[%clk 0:01:31.2]} 20... Rh8+ {[%clk
0:02:21.2]} 21. Kg1 {[%clk 0:01:31.3]} 21... Rae8 {[%clk 0:02:02.7]} 22. Rae1
{[%clk 0:01:24.1]} 22... c5 {[%clk 0:01:46.1]} 23. Rxe8 {[%clk 0:00:44.7]} 23...
Rxe8 {[%clk 0:01:44.3]} 24. Bb5 {[%clk 0:00:23.4]} 24... Re7 {[%clk 0:01:37.8]}
25. Be3 {[%clk 0:00:21.7]} 25... Nb6 {[%clk 0:01:28.2]} 26. Rf3 {[%clk
0:00:16.7]} 26... Nd5 {[%clk 0:01:24.6]} 27. Bd2 {[%clk 0:00:13.5]} 27... cxd4
{[%clk 0:01:20.9]} 28. f5 {[%clk 0:00:10.2]} 28... dxc3 {[%clk 0:01:09.3]} 29.
bxc3 {[%clk 0:00:10.5]} 29... Qc5+ {[%clk 0:01:06.4]} 30. Kh1 {[%clk 0:00:09.2]}
30... Qxb5 {[%clk 0:01:04.1]} 0-1

[Event "Early-Titled-Tuesday-Blitz-August-29-2023"]
[Site "Chess.com"]
[Date "2023.08.29"]
[Round "7"]
[White "whiteglovethief"]
[Black "SpongeBob_03"]
[Result "1-0"]
[WhiteElo "2414"]
[BlackElo "2186"]
[TimeControl "180+1"]
[EndTime "9:15:53 PDT"]
[Termination "whiteglovethief won by resignation"]

1. d4 {[%clk 0:03:00.9]} 1... Nf6 {[%clk 0:02:59.2]} 2. c4 {[%clk 0:03:01.1]}
2... e6 {[%clk 0:02:57.8]} 3. Nf3 {[%clk 0:03:01.5]} 3... Bb4+ {[%clk
0:02:57.9]} 4. Bd2 {[%clk 0:03:00.8]} 4... Qe7 {[%clk 0:02:57.8]} 5. g3 {[%clk
0:03:00.8]} 5... b6 {[%clk 0:02:56.3]} 6. Bg2 {[%clk 0:03:01.1]} 6... Bb7 {[%clk
0:02:56.9]} 7. O-O {[%clk 0:03:01.1]} 7... O-O {[%clk 0:02:57]} 8. Bf4 {[%clk
0:03:00.4]} 8... d5 {[%clk 0:02:48.1]} 9. c5 {[%clk 0:02:58.4]} 9... bxc5 {[%clk
0:02:47.4]} 10. a3 {[%clk 0:02:57.6]} 10... Ba5 {[%clk 0:02:43]} 11. dxc5 {[%clk
0:02:58.1]} 11... c6 {[%clk 0:02:41.9]} 12. Bd6 {[%clk 0:02:55.2]} 12... Qd7
{[%clk 0:02:40.8]} 13. Bxf8 {[%clk 0:02:53]} 13... Kxf8 {[%clk 0:02:41.7]} 14.
b4 {[%clk 0:02:50.7]} 14... Bc7 {[%clk 0:02:41.8]} 15. e3 {[%clk 0:02:47.2]}
15... a5 {[%clk 0:02:41.4]} 16. Nc3 {[%clk 0:02:47.1]} 16... Na6 {[%clk
0:02:40.8]} 17. Qb3 {[%clk 0:02:43]} 17... e5 {[%clk 0:02:39.3]} 18. Rfd1 {[%clk
0:02:40.1]} 18... e4 {[%clk 0:02:38.7]} 19. Nd4 {[%clk 0:02:39.3]} 19... Rb8
{[%clk 0:02:32.6]} 20. Na4 {[%clk 0:02:34.7]} 20... Bc8 {[%clk 0:02:27.7]} 21.
Qc3 {[%clk 0:02:28.5]} 21... axb4 {[%clk 0:02:27]} 22. axb4 {[%clk 0:02:29.2]}
22... Rxb4 {[%clk 0:02:24.4]} 23. Rdb1 {[%clk 0:02:22]} 23... Rc4 {[%clk
0:02:22.8]} 24. Qd2 {[%clk 0:02:18.4]} 24... Nxc5 {[%clk 0:02:14.1]} 25. Nb6
{[%clk 0:02:13.4]} 25... Bxb6 {[%clk 0:02:11.8]} 26. Rxb6 {[%clk 0:02:14.3]}
26... Nd3 {[%clk 0:02:06]} 27. Rb8 {[%clk 0:02:10.1]} 27... Ke7 {[%clk
0:02:03.6]} 28. Raa8 {[%clk 0:02:05.5]} 28... Rc1+ {[%clk 0:01:29]} 29. Bf1
{[%clk 0:02:04]} 29... Qh3 {[%clk 0:01:10.8]} 30. Qxc1 {[%clk 0:02:02.3]} 30...
Nxc1 {[%clk 0:00:53.5]} 31. Bxh3 {[%clk 0:02:02.1]} 31... Bxh3 {[%clk
0:00:54.4]} 32. Nxc6+ {[%clk 0:01:59.5]} 32... Kd6 {[%clk 0:00:54]} 33. Nd4
{[%clk 0:01:58.4]} 33... Ng4 {[%clk 0:00:50.6]} 34. Rb6+ {[%clk 0:01:54.9]}
34... Kc5 {[%clk 0:00:41]} 35. Rc6+ {[%clk 0:01:52.2]} 35... Kb4 {[%clk
0:00:41.2]} 36. Rb8+ {[%clk 0:01:51.9]} 36... Ka5 {[%clk 0:00:40.6]} 37. Rxc1
{[%clk 0:01:51.8]} 37... Ne5 {[%clk 0:00:39]} 38. Rc7 {[%clk 0:01:48]} 38... Ka6
{[%clk 0:00:37.8]} 39. Re7 {[%clk 0:01:46.6]} 39... f6 {[%clk 0:00:35.7]} 40.
Rxg7 {[%clk 0:01:43]} 40... h5 {[%clk 0:00:35.5]} 41. Rh7 {[%clk 0:01:41.4]}
41... h4 {[%clk 0:00:34.8]} 42. Rxh4 {[%clk 0:01:41.2]} 42... Bd7 {[%clk
0:00:34.7]} 43. Rh6 {[%clk 0:01:39.5]} 43... Ng4 {[%clk 0:00:28]} 44. Rg6 {[%clk
0:01:36.8]} 44... Ka5 {[%clk 0:00:27.1]} 45. Rxg4 {[%clk 0:01:36.5]} 45... Bxg4
{[%clk 0:00:26.7]} 46. h4 {[%clk 0:01:36.4]} 46... f5 {[%clk 0:00:26.7]} 47. Kg2
{[%clk 0:01:35.9]} 47... Ka6 {[%clk 0:00:26]} 48. Ne6 {[%clk 0:01:33.5]} 48...
Ka7 {[%clk 0:00:25.3]} 49. Rb2 {[%clk 0:01:32.2]} 49... Ka6 {[%clk 0:00:25.5]}
50. Nf4 {[%clk 0:01:32.2]} 50... Ka5 {[%clk 0:00:25.6]} 51. Nxd5 {[%clk
0:01:32.3]} 51... Ka4 {[%clk 0:00:26.5]} 52. Rb8 {[%clk 0:01:28.9]} 52... Ka3
{[%clk 0:00:27.4]} 53. Nf6 {[%clk 0:01:28]} 53... Ka4 {[%clk 0:00:28.3]} 54.
Nxg4 {[%clk 0:01:27.5]} 1-0